fUSD/lending_fUSD_20260329
["ID","MTS","AMOUNT","RATE_DAILY","PERIOD"]
[419048738,1774810246630,-2000.0,0.00015308,2]
[419048740,1774810246639,-2000.0,0.00015308,2]
[419048741,1774810246649,-2000.0,0.00015308,2]
[419048744,1774810246659,-2000.0,0.00015308,2]
[419048745,1774810246668,-2000.0,0.00015308,2]
[419048748,1774810246678,-1000.0,0.00015308,2]
[419048750,1774810246689,-1000.0,0.00015308,2]
[419048752,1774810246699,-1000.0,0.00015308,2]
[419048754,1774810246708,-10272.10520533,0.00015309,2]
[419048755,1774810246718,-500.0,0.00015309,2]
[419048757,1774810246728,-151.0,0.00015309,2]
[419048758,1774810246737,-282.71673119,0.00015309,2]
[419048759,1774810246747,-1000.0,0.00015315,2]
[419048760,1774810246757,-627.39,0.0001532,2]
[419048761,1774810246766,-381.48037858,0.0001532,2]
[419048762,1774810246776,-662.29,0.0001532,2]
[419048763,1774810246785,-500.0,0.0001532,2]
[419048764,1774810246794,-1028.23,0.0001532,2]
[419048765,1774810246804,-1350.40151463,0.00015325,2]
[419048766,1774810246814,-1000.0,0.00015328,2]
[419048767,1774810246824,-1000.0,0.00015338,2]
[419048768,1774810246834,-510.44418561,0.00015342,2]
[419048769,1774810246843,-2000.0,0.00015342,2]
[419048770,1774810246853,-471.18842002,0.00015342,2]
[419048771,1774810246863,-395.15417605,0.00015342,2]
[419048772,1774810246872,-2000.0,0.00015342,2]
[419048773,1774810246882,-2000.0,0.00015342,2]
[419048774,1774810246893,-2000.0,0.00015342,2]
[419048775,1774810246904,-2083.85118063,0.00015342,2]
[419048776,1774810246915,-332.25501618,0.00015342,2]
[419048777,1774810246926,-2000.0,0.00015342,2]
[419048778,1774810246936,-2000.0,0.00015342,2]
[419048779,1774810246948,-2000.0,0.00015342,2]
[419048780,1774810246959,-1000.0,0.00015346,2]
[419048781,1774810246969,-1000.0,0.00015351,2]
[419048782,1774810246978,-1000.0,0.00015351,2]
[419048783,1774810246988,-1000.0,0.00015351,2]
[419048784,1774810246998,-150.0,0.00015356,2]
[419048785,1774810247008,-1000.0,0.00015358,2]
[419048786,1774810247018,-10652.17309792,0.00015364,2]
[419048787,1774810247029,-500.0,0.00015364,2]
[419048788,1774810247039,-151.0,0.00015364,2]
[419048789,1774810247049,-293.17725025,0.00015364,2]
[419048790,1774810247059,-2315.0,0.0001539,2]
[419048791,1774810247069,-484.76481534,0.00015391,2]
[419048792,1774810247079,-485.48,0.00015391,2]
[419048793,1774810247088,-1000.0,0.00015393,2]
[419048794,1774810247099,-1000.0,0.00015396,2]
[419048795,1774810247109,-4373.32,0.000154,2]
[419048796,1774810247119,-2000.0,0.00015404,2]
[419048797,1774810247128,-2000.0,0.00015404,2]
[419048798,1774810247138,-2000.0,0.00015404,2]
[419048799,1774810247148,-2000.0,0.00015404,2]
[419048800,1774810247158,-2000.0,0.00015404,2]
[419048801,1774810247167,-2000.0,0.00015404,2]
[419048802,1774810247177,-2000.0,0.00015404,2]
[419048803,1774810247186,-2000.0,0.00015404,2]
[419048804,1774810247195,-350.0,0.00015409,2]
[419048805,1774810247205,-11046.30350255,0.00015419,2]
[419048806,1774810247214,-500.0,0.00015419,2]
[419048807,1774810247224,-151.0,0.00015419,2]
[419048808,1774810247235,-304.02480851,0.00015419,2]
[419048809,1774810247244,-1000.0,0.00015426,2]
[419048810,1774810247254,-350.0,0.00015436,3]
[419048811,1774810247264,-1000.0,0.00015442,2]
[419048812,1774810247273,-1000.0,0.00015444,2]
[419048813,1774810247283,-1000.0,0.00015449,2]
[419048814,1774810247292,-1000.0,0.0001545,2]
[419048815,1774810247302,-500.0,0.00015452,2]
[419048816,1774810247311,-1000.0,0.0001547,2]
[419048817,1774810247321,-11455.01673214,0.00015474,2]
[419048818,1774810247330,-500.0,0.00015474,2]
[419048819,1774810247339,-151.0,0.00015474,2]
[419048820,1774810247349,-315.27372642,0.00015474,2]
[419048821,1774810247359,-5617.05,0.000155,2]
[419048822,1774810247369,-5291.87,0.000155,2]
[419048823,1774810247379,-588.0,0.000155,2]
[419048824,1774810247389,-150.0,0.00015503,2]
[419048825,1774810247398,-1000.0,0.00015508,2]
[419048826,1774810247408,-189.38,0.00015509,2]
[419048827,1774810247417,-180.28,0.00015526,2]
[419048828,1774810247428,-1000.0,0.00015526,2]
[419048829,1774810247438,-11878.85235123,0.00015529,2]
[419048830,1774810247447,-500.0,0.00015529,2]
[419048831,1774810247457,-151.0,0.00015529,2]
[419048832,1774810247467,-326.9388543,0.00015529,2]
[419048833,1774810247478,-1000.0,0.00015534,2]
[419048834,1774810247488,-2315.0,0.00015535,2]
[419048835,1774810247497,-888.83,0.00015537,2]
[419048836,1774810247507,-1000.0,0.00015554,2]
[419048837,1774810247517,-1000.0,0.0001556,2]
[419048838,1774810247528,-500.0,0.00015562,2]
[419048839,1774810247539,-629.043,0.00015566,2]
[419048840,1774810247549,-1050.151,0.00015566,2]
[419048841,1774810247558,-3518.0,0.00015566,2]
[419048842,1774810247567,-1270.708,0.00015566,2]
[419048843,1774810247577,-151.208,0.00015566,2]
[419048844,1774810247587,-200.0,0.00015566,2]
[419048845,1774810247596,-217.0,0.00015566,2]
[419048846,1774810247606,-272.0,0.00015566,2]
[419048847,1774810247616,-200.0,0.00015566,2]
[419048848,1774810247626,-3765.0,0.00015566,2]
[419048849,1774810247636,-415.0,0.00015566,2]
[419048850,1774810247646,-485.48,0.00015566,2]
[419048851,1774810247656,-189.38,0.00015574,2]
[419048852,1774810247666,-12318.36988823,0.00015584,2]
[419048853,1774810247675,-500.0,0.00015584,2]
[419048854,1774810247686,-151.0,0.00015584,2]
[419048855,1774810247696,-339.03559191,0.00015584,2]
[419048856,1774810247705,-2000.0,0.000156,2]
[419048857,1774810247716,-1000.0,0.00015612,2]
[419048858,1774810247726,-1000.0,0.00015638,2]
[419048859,1774810247735,-1000.0,0.00015639,2]
[419048860,1774810247746,-12774.14957409,0.00015639,2]
[419048861,1774810247756,-500.0,0.00015639,2]
[419048862,1774810247768,-151.0,0.00015639,2]
[419048863,1774810247777,-1000.0,0.00015648,2]
[419048864,1774810247787,-485.48,0.00015654,2]
[419048865,1774810247796,-1000.0,0.00015657,2]
[419048866,1774810247806,-1000.0,0.00015667,2]
[419048867,1774810247816,-1000.0,0.00015677,2]
[419048868,1774810247826,-502.70414622,0.0001568,2]
[419048869,1774810247835,-1000.0,0.00015684,2]
[419048870,1774810247845,-1000.0,0.00015684,2]
[419048871,1774810247855,-1000.0,0.00015688,2]
[419048872,1774810247865,-13246.79310833,0.00015694,2]
[419048873,1774810247875,-500.0,0.00015694,2]
[419048874,1774810247885,-151.0,0.00015694,2]
[419048875,1774810247894,-1000.0,0.00015696,2]
[419048876,1774810247904,-1100.0,0.000157,5]
[419048877,1774810247913,-1000.0,0.00015703,2]
[419048878,1774810247922,-1000.0,0.00015716,2]
[419048879,1774810247932,-1000.0,0.00015723,2]
[419048880,1774810247942,-500.0,0.00015729,2]
[419048881,1774810247952,-683.0,0.00015732,2]
[419048882,1774810247962,-150.0,0.00015732,2]
[419048883,1774810247971,-485.48,0.00015741,2]
[419048884,1774810247982,-151.0,0.00015747,2]
[419048885,1774810247992,-217.15233878,0.00015747,2]
[419048886,1774810248002,-1481.23780761,0.00015747,2]
[419048887,1774810248012,-217.15233878,0.00015747,2]
[419048888,1774810248021,-181.08010149,0.00015747,2]
[419048889,1774810248031,-719.04747942,0.00015747,2]
[419048890,1774810248041,-200.0,0.00015747,2]
[419048891,1774810248050,-217.15233878,0.00015747,2]
[419048892,1774810248060,-290.26104003,0.00015747,2]
[419048893,1774810248070,-771.01748645,0.00015747,2]
[419048894,1774810248080,-5473.357,0.00015749,2]
[419048895,1774810248090,-340.349,0.00015749,2]
[419048896,1774810248099,-6003.86625702,0.00015749,2]
[419048897,1774810248109,-500.0,0.00015749,2]
[419048898,1774810248118,-151.0,0.00015749,2]
[419048899,1774810248254,-3240.52,0.00015753,2]
[419048900,1774810248264,-500.0,0.00015753,2]
[419048901,1774810248274,-1000.0,0.00015759,2]
[419048902,1774810248283,-1000.0,0.00015763,2]
[419048903,1774810248292,-683.0,0.00015764,2]
[419048904,1774810248301,-458.0,0.00015781,2]
[419048905,1774810248310,-690.0,0.00015781,2]
[419048906,1774810248319,-1000.0,0.00015781,2]
[419048907,1774810248328,-151.0,0.00015788,2]
[419048908,1774810248338,-200.0,0.0001579,2]
[419048909,1774810248347,-627.39,0.00015792,2]
[419048910,1774810248356,-155.0,0.00015792,2]
[419048911,1774810248365,-662.29,0.00015792,2]
[419048912,1774810248374,-500.0,0.00015792,2]
[419048913,1774810248383,-1028.23,0.00015792,2]
[419048914,1774810248392,-445.4749,0.000158,2]
[419048915,1774810248402,-1100.0,0.000158,5]
[419048916,1774810248411,-1000.0,0.00015807,2]
[419048917,1774810248421,-1000.0,0.00015827,2]
[419048918,1774810248431,-683.0,0.00015828,2]
[419048919,1774810248441,-1000.0,0.0001583,2]
[419048920,1774810248451,-1000.0,0.00015836,2]
[419048921,1774810248460,-67726.49863211,0.0001584,2]
[419048922,1774810248471,-1000.0,0.00015843,2]
[419048923,1774810248480,-1000.0,0.00015844,2]
[419048924,1774810248489,-166.55350379,0.00015859,2]
[419048925,1774810248499,-200.0,0.00015871,2]
[419048926,1774810248508,-500.0,0.00015872,2]
[419048927,1774810248517,-200.0,0.00015872,2]
[419048928,1774810248526,-200.0,0.00015872,2]
[419048929,1774810248536,-1000.0,0.00015873,2]
[419048930,1774810248545,-861.93,0.00015874,30]
[419048931,1774810248555,-350.0,0.00015883,2]
[419048932,1774810248565,-781.0056123,0.0001589,2]
[419048933,1774810248574,-757.40227596,0.0001589,2]
[419048934,1774810248584,-2500.0,0.0001589,2]
[419048935,1774810248593,-2500.0,0.0001589,2]
[419048936,1774810248602,-225.66563804,0.0001589,2]
[419048937,1774810248611,-1552.52786772,0.0001589,2]
[419048938,1774810248620,-1000.0,0.00015892,2]
[419048939,1774810248630,-1000.0,0.00015894,2]
[419048940,1774810248640,-1000.0,0.00015896,2]
[419048941,1774810248650,-2315.0,0.00015899,2]
[419048942,1774810248659,-1000.0,0.00015899,2]
[419048943,1774810248668,-1000.0,0.00015899,2]
[419048944,1774810248677,-1000.0,0.00015899,2]
[419048945,1774810248687,-1000.0,0.00015899,2]
[419048946,1774810248696,-1000.0,0.00015899,2]
[419048947,1774810248705,-1000.0,0.00015899,2]
[419048948,1774810248714,-1000.0,0.00015899,2]
[419048949,1774810248723,-1000.0,0.00015899,2]
[419048950,1774810248732,-1000.0,0.00015899,2]
[419048951,1774810248741,-1000.0,0.00015899,2]
[419048952,1774810248750,-1000.0,0.00015899,2]
[419048953,1774810248759,-1000.0,0.00015899,2]
[419048954,1774810248768,-1000.0,0.00015899,2]
[419048955,1774810248777,-1000.0,0.00015899,2]
[419048956,1774810248786,-710.164,0.00015899,2]
[419048957,1774810248795,-150.0,0.000159,2]
[419048958,1774810248804,-1024.01701625,0.000159,2]
[419048959,1774810248813,-570.73643002,0.000159,2]
[419048960,1774810248822,-1100.0,0.000159,5]
[419048961,1774810248832,-150.0,0.000159,2]
[419048962,1774810248841,-2545.87602543,0.000159,2]
[419048963,1774810248850,-9606.5105148,0.000159,2]
[419048964,1774810248859,-150.0,0.000159,2]
[419048965,1774810248869,-7980.0,0.000159,5]
[419048966,1774810248878,-6387.0,0.000159,5]
[419048967,1774810248888,-1000.0,0.00015909,2]
[419048968,1774810248897,-227.70167578,0.00015912,2]
[419048969,1774810248908,-150.0,0.00015912,2]
[419048970,1774810248917,-1000.0,0.00015918,2]
[419048971,1774810248927,-15258.9690186,0.00015926,2]
[419048972,1774810248937,-1000.0,0.00015931,2]
[419048973,1774810248946,-1000.0,0.00015939,2]
[419048974,1774810248956,-1000.0,0.00015949,2]
[419048975,1774810248966,-350.0,0.00015957,2]
[419048976,1774810248975,-3835.20744626,0.0001596,2]
[419048977,1774810248985,-627.39,0.00015961,2]
[419048978,1774810248996,-627.39,0.00015961,2]
[419048979,1774810249005,-627.39,0.00015961,2]
[419048980,1774810249015,-627.39,0.00015961,2]
[419048981,1774810249024,-627.39,0.00015961,2]
[419048982,1774810249034,-627.48655738,0.00015961,2]
[419048983,1774810249043,-662.29,0.00015961,2]
[419048984,1774810249053,-662.29,0.00015961,2]
[419048985,1774810249062,-662.29,0.00015961,2]
[419048986,1774810249072,-662.29,0.00015961,2]
[419048987,1774810249081,-662.29,0.00015961,2]
[419048988,1774810249091,-662.33409801,0.00015961,2]
[419048989,1774810249100,-500.0,0.00015961,2]
[419048990,1774810249109,-500.0,0.00015961,2]
[419048991,1774810249119,-500.0,0.00015961,2]
[419048992,1774810249128,-500.0,0.00015961,2]
[419048993,1774810249137,-330.76422672,0.00015961,2]
[419048994,1774810249147,-1028.23,0.00015961,2]
[419048995,1774810249156,-1028.23,0.00015961,2]
[419048996,1774810249165,-1028.23,0.00015961,2]
[419048997,1774810249175,-1028.23,0.00015961,2]
[419048998,1774810249184,-1028.23,0.00015961,2]
[419048999,1774810249193,-1028.23,0.00015961,2]
[419049000,1774810249203,-1000.0,0.0001597,2]
[419049001,1774810249212,-1000.0,0.00015976,2]
[419049002,1774810249222,-1000.0,0.00015979,2]
[419049003,1774810249231,-252.0214489,0.00015985,2]
[419049004,1774810249240,-182.43151515,0.00015985,2]
[419049005,1774810249250,-1000.0,0.00015989,2]
[419049006,1774810249259,-164.061114,0.00015997,2]
[419049007,1774810249269,-151.0,0.00015997,2]
[419049008,1774810249279,-4002.20748493,0.00015999,2]
[419049009,1774810249288,-666.0,0.00015999,2]
[419049010,1774810249298,-666.0,0.00015999,2]
[419049011,1774810249307,-666.0,0.00015999,2]
[419049012,1774810249316,-191.34143382,0.00015999,2]
[419049013,1774810249326,-344.0701663,0.00015999,2]
[419049014,1774810249335,-4395387.07022455,0.00016,2]
[419049015,1774810251266,-36.37414443,0.00016,2]
[419049016,1774810251281,-388.29581835,0.00016,2]
[419049017,1774810251305,-719.17,0.00010248,2]
[419049018,1774810251351,-461.5282217,0.00010248,2]
[419049019,1774810251362,-292.3017783,0.00010248,2]
[419049020,1774810251372,-1510.0,0.00010269,2]
[419049021,1774810251381,-2000.0,0.00015404,2]
[419049022,1774810251391,-3934626.46407942,0.00016,2]
[419049023,1774810251403,-2711896.17561365,0.00016,2]
[419049024,1774810251412,-435.94554981,0.00016,2]
[419049025,1774810251422,-258.09544847,0.00016,2]
[419049026,1774810251431,-151.0,0.00016,2]
[419049027,1774810251441,-151.0,0.00016,2]
[419049028,1774810251451,-151.0,0.00016,2]
[419049029,1774810251461,-151.0,0.00016,2]
[419049030,1774810251473,-151.0,0.00016,2]
[419049031,1774810251484,-151.0,0.00016,2]
[419049032,1774810251494,-151.0,0.00016,2]
[419049033,1774810251503,-151.0,0.00016,2]
[419049034,1774810251513,-161.0,0.00016,2]
[419049035,1774810251522,-500.0,0.00016,2]
[419049036,1774810251533,-500.0,0.00016,2]
[419049037,1774810251545,-500.0,0.00016,2]
[419049038,1774810251556,-500.0,0.00016,2]
[419049039,1774810251565,-500.0,0.00016,2]
[419049040,1774810251575,-500.0,0.00016,2]
[419049041,1774810251585,-500.0,0.00016,2]
[419049042,1774810251595,-348.6958457,0.00016,2]
[419049043,1774810251605,-193.723397,0.00016,2]
[419049044,1774810251615,-193.723397,0.00016,2]
[419049045,1774810251625,-193.723397,0.00016,2]
[419049046,1774810251634,-193.723397,0.00016,2]
[419049047,1774810251644,-1000.0,0.00016,2]
[419049048,1774810251654,-1000.0,0.00016,2]
[419049049,1774810251663,-1000.0,0.00016,2]
[419049050,1774810251673,-1000.0,0.00016,2]
[419049051,1774810251682,-1000.0,0.00016,2]
[419049052,1774810251691,-1000.0,0.00016,2]
[419049053,1774810251701,-1000.0,0.00016,2]
[419049054,1774810251710,-1000.0,0.00016,2]
[419049055,1774810251719,-1000.0,0.00016,2]
[419049056,1774810251729,-1000.0,0.00016,2]
[419049057,1774810251738,-1000.0,0.00016,2]
[419049058,1774810251748,-1000.0,0.00016,2]
[419049059,1774810251757,-1000.0,0.00016,2]
[419049060,1774810251766,-1000.0,0.00016,2]
[419049061,1774810251776,-1000.0,0.00016,2]
[419049062,1774810251785,-1000.0,0.00016,2]
[419049063,1774810251795,-1000.0,0.00016,2]
[419049064,1774810251804,-1000.0,0.00016,2]
[419049065,1774810251814,-1000.0,0.00016,2]
[419049066,1774810251824,-1000.0,0.00016,2]
[419049067,1774810251833,-1000.0,0.00016,2]
[419049068,1774810251843,-482.25822731,0.00016,2]
[419049069,1774810251853,-926.279565,0.00016,2]
[419049070,1774810251862,-926.279565,0.00016,2]
[419049071,1774810251872,-926.279565,0.00016,2]
[419049072,1774810251881,-926.279565,0.00016,2]
[419049073,1774810251891,-166.899042,0.00016,2]
[419049074,1774810251901,-166.899042,0.00016,2]
[419049075,1774810251910,-166.899042,0.00016,2]
[419049076,1774810251920,-166.899042,0.00016,2]
[419049077,1774810251929,-151.0,0.00016,2]
[419049078,1774810251939,-151.0,0.00016,2]
[419049079,1774810251948,-151.0,0.00016,2]
[419049080,1774810251958,-151.0,0.00016,2]
[419049081,1774810251968,-151.0,0.00016,2]
[419049082,1774810251977,-151.0,0.00016,2]
[419049083,1774810251986,-317.929721,0.00016,2]
[419049084,1774810251997,-317.929721,0.00016,2]
[419049085,1774810252006,-317.929721,0.00016,2]
[419049086,1774810252015,-317.929721,0.00016,2]
[419049087,1774810252025,-1189.605376,0.00016,2]
[419049088,1774810252035,-1189.605376,0.00016,2]
[419049089,1774810252044,-1189.605376,0.00016,2]
[419049090,1774810252054,-1189.605376,0.00016,2]
[419049091,1774810252063,-151.0,0.00016,2]
[419049092,1774810252072,-160.0,0.00016,3]
[419049093,1774810252082,-160.0,0.00016,3]
[419049094,1774810252092,-2000.0,0.00016,2]
[419049095,1774810252102,-2000.0,0.00016,2]
[419049096,1774810252111,-2000.0,0.00016,2]
[419049097,1774810252120,-2000.0,0.00016,2]
[419049098,1774810252130,-2000.0,0.00016,2]
[419049099,1774810252140,-2000.0,0.00016,2]
[419049100,1774810252150,-417.1294472,0.00016,2]
[419049101,1774810252159,-200.0,0.00016,2]
[419049102,1774810252168,-1000.0,0.00016,2]
[419049103,1774810252178,-1000.0,0.00016,2]
[419049104,1774810252188,-1000.0,0.00016,2]
[419049105,1774810252197,-1000.0,0.00016,2]
[419049106,1774810252208,-1000.0,0.00016,2]
[419049107,1774810252217,-469.082,0.00016,2]
[419049108,1774810252228,-2424.0,0.00016005,2]
[419049109,1774810252237,-2424.0,0.00016014,2]
[419049110,1774810252247,-350.0,0.00016033,2]
[419049111,1774810252256,-2807.0,0.0001604,2]
[419049112,1774810252266,-2424.0,0.00016075,2]
[419049113,1774810252276,-1847.95,0.00016083,2]
[419049114,1774810252285,-2424.0,0.00016092,2]
[419049115,1774810252295,-417.1294472,0.000161,2]
[419049116,1774810252304,-666.0,0.00016102,2]
[419049117,1774810252314,-2424.0,0.0001611,2]
[419049118,1774810252324,-2424.0,0.00016121,2]
[419049119,1774810252334,-2424.0,0.00016152,2]
[419049120,1774810252344,-2424.0,0.00016161,2]
[419049121,1774810252353,-2666.0,0.00016161,2]
[419049122,1774810252363,-666.0,0.00016163,2]
[419049123,1774810252372,-684.0040152,0.00016163,2]
[419049124,1774810252382,-713.0,0.00016164,2]
[419049125,1774810252391,-713.0,0.00016164,2]
[419049126,1774810252400,-713.0,0.00016164,2]
[419049127,1774810252410,-713.0,0.00016164,2]
[419049128,1774810252419,-713.0,0.00016164,2]
[419049129,1774810252430,-713.0,0.00016164,2]
[419049130,1774810252440,-713.0,0.00016164,2]
[419049131,1774810252450,-713.0,0.00016164,2]
[419049132,1774810252459,-713.0,0.00016164,2]
[419049133,1774810252468,-713.0,0.00016164,2]
[419049134,1774810252478,-713.0,0.00016164,2]
[419049135,1774810252487,-713.0,0.00016164,2]
[419049136,1774810252497,-713.0,0.00016164,2]
[419049137,1774810252507,-713.0,0.00016164,2]
[419049138,1774810252517,-713.0,0.00016164,2]
[419049139,1774810252527,-713.0,0.00016164,2]
[419049140,1774810252537,-713.0,0.00016164,2]
[419049141,1774810252547,-713.0,0.00016164,2]
[419049142,1774810252557,-713.0,0.00016164,2]
[419049143,1774810252567,-713.0,0.00016164,2]
[419049144,1774810252577,-713.0,0.00016164,2]
[419049145,1774810252587,-713.0,0.00016164,2]
[419049146,1774810252597,-713.0,0.00016164,2]
[419049147,1774810252607,-721.64695951,0.00016164,2]
[419049148,1774810252616,-500.0,0.00016164,2]
[419049149,1774810252627,-528.23221251,0.00016164,2]
[419049150,1774810252637,-2424.0,0.00016168,2]
[419049151,1774810252648,-2424.0,0.0001617,2]
[419049152,1774810252656,-2424.0,0.0001617,2]
[419049153,1774810252666,-2666.0,0.00016175,2]
[419049154,1774810252675,-2424.0,0.00016177,2]
[419049155,1774810252684,-2666.0,0.00016196,2]
[419049156,1774810252694,-1115.0,0.00016197,2]
[419049157,1774810252704,-417.1294472,0.000162,2]
[419049158,1774810252714,-154.52171326,0.00016204,2]
[419049159,1774810252724,-350.0,0.00016248,2]
[419049160,1774810252734,-2315.0,0.00016264,2]
[419049161,1774810252744,-180.28,0.00016265,2]
[419049162,1774810252753,-2315.0,0.00016268,2]
[419049163,1774810252764,-1570.0,0.0001628,2]
[419049164,1774810252774,-4000.0,0.00016282,2]
[419049165,1774810252784,-151.0,0.00016295,2]
[419049166,1774810252794,-225.18697532,0.00016295,2]
[419049167,1774810252804,-1536.04360649,0.00016295,2]
[419049168,1774810252816,-225.18697532,0.00016295,2]
[419049169,1774810252826,-187.78006525,0.00016295,2]
[419049170,1774810252837,-745.65223616,0.00016295,2]
[419049171,1774810252847,-200.0,0.00016295,2]
[419049172,1774810252857,-225.18697532,0.00016295,2]
[419049173,1774810252866,-301.00069851,0.00016295,2]
[419049174,1774810252876,-799.54513345,0.00016295,2]
[419049175,1774810252885,-1602.93,0.000163,2]
[419049176,1774810252894,-351.66447521,0.00016321,2]
[419049177,1774810252904,-214.84071589,0.00016321,2]
[419049178,1774810252914,-233.86267869,0.00016338,2]
[419049179,1774810252924,-200.0,0.0001634,2]
[419049180,1774810252934,-2666.0,0.00016357,2]
[419049181,1774810252943,-150.0,0.000164,2]
[419049182,1774810252954,-213.0,0.000164,2]
[419049183,1774810252964,-302.46,0.000164,2]
[419049184,1774810252974,-355.10302531,0.000164,2]
[419049185,1774810252984,-500.0,0.00016437,2]
[419049186,1774810252994,-2946.4,0.00016438,2]
[419049187,1774810253004,-1669.83,0.00016438,2]
[419049188,1774810253014,-641.56,0.00016438,2]
[419049189,1774810253024,-2500.0,0.00016438,2]
[419049190,1774810253033,-2500.0,0.00016438,2]
[419049191,1774810253042,-2500.0,0.00016438,2]
[419049192,1774810253052,-2500.0,0.00016438,2]
[419049193,1774810253062,-2500.0,0.00016438,2]
[419049194,1774810253073,-2500.0,0.00016438,2]
[419049195,1774810253083,-2500.0,0.00016438,2]
[419049196,1774810253093,-2500.0,0.00016438,2]
[419049197,1774810253104,-2500.0,0.00016438,2]
[419049198,1774810253114,-2500.0,0.00016438,2]
[419049199,1774810253123,-2500.0,0.00016438,2]
[419049200,1774810253133,-2500.0,0.00016438,2]
[419049201,1774810253143,-2500.0,0.00016438,2]
[419049202,1774810253153,-2500.0,0.00016438,2]
[419049203,1774810253163,-2500.0,0.00016438,2]
[419049204,1774810253173,-2500.0,0.00016438,2]
[419049205,1774810253182,-2500.0,0.00016438,2]
[419049206,1774810253191,-2500.0,0.00016438,2]
[419049207,1774810253201,-2500.0,0.00016438,2]
[419049208,1774810253210,-2500.0,0.00016438,2]
[419049209,1774810253220,-2500.0,0.00016438,2]
[419049210,1774810253229,-2500.0,0.00016438,2]
[419049211,1774810253239,-2500.0,0.00016438,2]
[419049212,1774810253248,-2500.0,0.00016438,2]
[419049213,1774810253258,-2500.0,0.00016438,2]
[419049214,1774810253268,-2500.0,0.00016438,2]
[419049215,1774810253278,-207.19577139,0.00016438,2]
[419049216,1774810253288,-150.0,0.00016438,2]
[419049217,1774810253297,-150.0,0.00016438,2]
[419049218,1774810253307,-150.0,0.00016438,2]
[419049219,1774810253316,-150.0,0.00016438,2]
[419049220,1774810253326,-150.0,0.00016438,2]
[419049221,1774810253798,-150.0,0.00016438,2]
[419049222,1774810253809,-150.0,0.00016438,2]
[419049223,1774810253819,-150.0,0.00016438,2]
[419049224,1774810253829,-150.0,0.00016438,2]
[419049225,1774810253838,-150.0,0.00016438,2]
[419049226,1774810253848,-150.0,0.00016438,2]
[419049227,1774810253857,-150.0,0.00016438,2]
[419049228,1774810253867,-150.0,0.00016438,2]
[419049229,1774810253876,-150.0,0.00016438,2]
[419049230,1774810253887,-150.0,0.00016438,2]
[419049231,1774810253897,-150.0,0.00016438,2]
[419049232,1774810253907,-150.0,0.00016438,2]
[419049233,1774810253917,-150.0,0.00016438,2]
[419049234,1774810253927,-150.0,0.00016438,2]
[419049235,1774810253937,-150.0,0.00016438,2]
[419049236,1774810253947,-150.0,0.00016438,2]
[419049237,1774810253956,-150.0,0.00016438,2]
[419049238,1774810253966,-150.0,0.00016438,2]
[419049239,1774810253976,-150.0,0.00016438,2]
[419049240,1774810253987,-150.0,0.00016438,2]
[419049241,1774810253997,-150.0,0.00016438,2]
[419049242,1774810254007,-150.0,0.00016438,2]
[419049243,1774810254016,-150.0,0.00016438,2]
[419049244,1774810254027,-150.0,0.00016438,2]
[419049245,1774810254037,-150.0,0.00016438,2]
[419049246,1774810254048,-150.0,0.00016438,2]